[Event "Titled Tuesday Blitz February 22 Early 2022"]
[White "Gulecyuz, Deniz"]
[Black "Xie, Bryan"]
[WhiteFideId "30921341"]
[BlackFideId "30941296"]
[WhiteElo "1925"]
[BlackElo "1899"]
[Result "0-1"]
[Round "03"]
[TimeControl "180+1"]
[Date "2022.02.22"]
[WhiteClock "0:00:10"]
[BlackClock "0:00:22"]

1. e4 {[%clk 0:03:00]}  c5 {[%clk 0:03:00]} 2. Nf3 {[%clk 0:03:01]}  e6 {[%clk 0:02:59]} 3. d4 {[%clk 0:02:57]}  cxd4 {[%clk 0:02:59]} 4. Nxd4 {[%clk 0:02:58]}  Nc6 {[%clk 0:03:00]} 5. c4 {[%clk 0:02:59]}  Nf6 {[%clk 0:02:58]} 6. Nc3 {[%clk 0:02:59]}  a6 {[%clk 0:02:56]} 7. Be3 {[%clk 0:02:55]}  Qc7 {[%clk 0:02:55]} 8. Be2 {[%clk 0:02:54]}  Bb4 {[%clk 0:02:55]} 9. f3 {[%clk 0:02:46]}  O-O {[%clk 0:02:54]} 10. O-O {[%clk 0:02:46]}  Be7 {[%clk 0:02:47]} 11. Qd2 {[%clk 0:02:39]}  d6 {[%clk 0:02:39]} 12. a3 {[%clk 0:02:34]}  b6 {[%clk 0:02:40]} 13. b4 {[%clk 0:02:34]}  Bb7 {[%clk 0:02:40]} 14. Rfc1 {[%clk 0:02:33]}  Rac8 {[%clk 0:02:40]} 15. Rab1 {[%clk 0:02:33]}  Qb8 {[%clk 0:02:40]} 16. Na4 {[%clk 0:01:54]}  Nd7 {[%clk 0:02:38]} 17. Bf1 {[%clk 0:01:40]}  Nxd4 {[%clk 0:02:28]} 18. Bxd4 {[%clk 0:01:35]}  Bc6 {[%clk 0:02:26]} 19. Nc3 {[%clk 0:01:35]}  b5 {[%clk 0:02:23]} 20. cxb5 {[%clk 0:01:32]}  axb5 {[%clk 0:02:24]} 21. Qe2 {[%clk 0:01:08]}  Bg5 {[%clk 0:01:59]} 22. Rd1 {[%clk 0:00:50]}  Bf4 {[%clk 0:01:21]} 23. Nxb5 {[%clk 0:00:47]}  d5 {[%clk 0:01:17]} 24. g3 {[%clk 0:00:44]}  dxe4 {[%clk 0:01:02]} 25. gxf4 {[%clk 0:00:38]}  exf3 {[%clk 0:01:02]} 26. Qd3 {[%clk 0:00:38]}  Qxf4 {[%clk 0:01:02]} 27. Bf2 {[%clk 0:00:35]}  Qg5+ {[%clk 0:00:43]} 28. Kh1 {[%clk 0:00:35]}  Ne5 {[%clk 0:00:43]} 29. Qd2 {[%clk 0:00:25]}  Qh5 {[%clk 0:00:39]} 30. Na7 {[%clk 0:00:20]}  Ng4 {[%clk 0:00:38]} 31. Bg3 {[%clk 0:00:18]}  Be4 {[%clk 0:00:28]} 32. Qd4 {[%clk 0:00:13]}  Rc2 {[%clk 0:00:21]} 33. Qxe4 {[%clk 0:00:11]}  Qxh2+ {[%clk 0:00:21]} 34. Bxh2 {[%clk 0:00:10]}  Rxh2+ {[%clk 0:00:22]} 35. Kg1 {[%clk 0:00:10]}  f2# {[%clk 0:00:22]} 0-1


[Site "https://www.chess.com"]

[Event "Titled Tuesday Blitz February 22 Early 2022"]
[White "Guseva, Marina"]
[Black "Maevsky, Nikolay"]
[WhiteFideId "4149351"]
[BlackFideId "4198220"]
[WhiteElo "2232"]
[BlackElo "2104"]
[Result "1-0"]
[Round "03"]
[TimeControl "180+1"]
[Date "2022.02.22"]
[WhiteClock "0:00:04"]
[BlackClock "0:00:12"]

1. d4 {[%clk 0:02:57]}  d5 {[%clk 0:03:00]} 2. Nf3 {[%clk 0:02:56]}  Nf6 {[%clk 0:02:59]} 3. Bf4 {[%clk 0:02:55]}  c5 {[%clk 0:02:59]} 4. e3 {[%clk 0:02:55]}  Nc6 {[%clk 0:02:59]} 5. Nbd2 {[%clk 0:02:54]}  Bg4 {[%clk 0:02:57]} 6. c3 {[%clk 0:02:53]}  e6 {[%clk 0:02:57]} 7. Qb3 {[%clk 0:02:52]}  Qb6 {[%clk 0:02:56]} 8. Ne5 {[%clk 0:02:46]}  Nxe5 {[%clk 0:02:50]} 9. Bxe5 {[%clk 0:02:42]}  Qxb3 {[%clk 0:02:37]} 10. axb3 {[%clk 0:02:37]}  Nd7 {[%clk 0:02:37]} 11. Bg3 {[%clk 0:02:35]}  a6 {[%clk 0:02:35]} 12. Bd3 {[%clk 0:02:25]}  Rc8 {[%clk 0:02:32]} 13. f3 {[%clk 0:02:17]}  Bh5 {[%clk 0:02:31]} 14. Kf2 {[%clk 0:02:15]}  Be7 {[%clk 0:02:30]} 15. h4 {[%clk 0:02:06]}  Bg6 {[%clk 0:02:27]} 16. Be2 {[%clk 0:01:59]}  h5 {[%clk 0:02:26]} 17. Bf4 {[%clk 0:01:58]}  Nf6 {[%clk 0:02:09]} 18. Bg5 {[%clk 0:01:46]}  Nd7 {[%clk 0:02:06]} 19. Bxe7 {[%clk 0:01:43]}  Kxe7 {[%clk 0:02:06]} 20. dxc5 {[%clk 0:01:40]}  Nxc5 {[%clk 0:02:03]} 21. b4 {[%clk 0:01:40]}  Nd7 {[%clk 0:01:55]} 22. b5 {[%clk 0:01:31]}  axb5 {[%clk 0:01:55]} 23. Bxb5 {[%clk 0:01:30]}  Ra8 {[%clk 0:01:54]} 24. Nb3 {[%clk 0:01:30]}  Ne5 {[%clk 0:01:47]} 25. Nc5 {[%clk 0:01:22]}  b6 {[%clk 0:01:38]} 26. Na6 {[%clk 0:01:10]}  Bd3 {[%clk 0:01:08]} 27. Nc7 {[%clk 0:01:08]}  Rac8 {[%clk 0:01:05]} 28. Ra7 {[%clk 0:01:05]}  Kf6 {[%clk 0:00:58]} 29. Ba4 {[%clk 0:00:47]}  Bc4 {[%clk 0:00:54]} 30. Bc2 {[%clk 0:00:44]}  Bd3 {[%clk 0:00:53]} 31. Bd1 {[%clk 0:00:42]}  Bc4 {[%clk 0:00:52]} 32. Be2 {[%clk 0:00:42]}  Bxe2 {[%clk 0:00:41]} 33. Kxe2 {[%clk 0:00:41]}  Nc4 {[%clk 0:00:35]} 34. b3 {[%clk 0:00:35]}  Nd6 {[%clk 0:00:35]} 35. Kf2 {[%clk 0:00:24]}  g6 {[%clk 0:00:33]} 36. Rha1 {[%clk 0:00:23]}  Rhd8 {[%clk 0:00:31]} 37. R1a6 {[%clk 0:00:20]}  Rb8 {[%clk 0:00:31]} 38. g3 {[%clk 0:00:12]}  Rdc8 {[%clk 0:00:31]} 39. Kg2 {[%clk 0:00:10]}  Nb7 {[%clk 0:00:26]} 40. Nb5 {[%clk 0:00:09]}  Nc5 {[%clk 0:00:23]} 41. Ra3 {[%clk 0:00:09]}  Rb7 {[%clk 0:00:15]} 42. b4 {[%clk 0:00:08]}  Rxa7 {[%clk 0:00:09]} 43. Nxa7 {[%clk 0:00:08]}  Rc7 {[%clk 0:00:09]} 44. bxc5 {[%clk 0:00:08]}  bxc5 {[%clk 0:00:09]} 45. Nb5 {[%clk 0:00:08]}  Rb7 {[%clk 0:00:09]} 46. Ra5 {[%clk 0:00:08]}  Ke7 {[%clk 0:00:08]} 47. Kf2 {[%clk 0:00:08]}  f6 {[%clk 0:00:07]} 48. Ra7 {[%clk 0:00:07]}  Rxa7 {[%clk 0:00:07]} 49. Nxa7 {[%clk 0:00:08]}  Kd6 {[%clk 0:00:08]} 50. Nb5+ {[%clk 0:00:08]}  Kc6 {[%clk 0:00:09]} 51. Na3 {[%clk 0:00:08]}  c4 {[%clk 0:00:09]} 52. Ke2 {[%clk 0:00:08]}  e5 {[%clk 0:00:09]} 53. Nc2 {[%clk 0:00:07]}  Kc5 {[%clk 0:00:10]} 54. Kd2 {[%clk 0:00:07]}  g5 {[%clk 0:00:10]} 55. hxg5 {[%clk 0:00:06]}  fxg5 {[%clk 0:00:11]} 56. Ne1 {[%clk 0:00:05]}  h4 {[%clk 0:00:10]} 57. gxh4 {[%clk 0:00:05]}  gxh4 {[%clk 0:00:11]} 58. f4 {[%clk 0:00:05]}  e4 {[%clk 0:00:09]} 59. Ke2 {[%clk 0:00:03]}  Kd6 {[%clk 0:00:09]} 60. Kf2 {[%clk 0:00:03]}  Ke6 {[%clk 0:00:09]} 61. Kg2 {[%clk 0:00:04]}  d4 {[%clk 0:00:10]} 62. exd4 {[%clk 0:00:03]}  Kf5 {[%clk 0:00:10]} 63. d5 {[%clk 0:00:03]}  e3 {[%clk 0:00:09]} 64. Kh3 {[%clk 0:00:03]}  Kxf4 {[%clk 0:00:09]} 65. d6 {[%clk 0:00:02]}  e2 {[%clk 0:00:09]} 66. d7 {[%clk 0:00:03]}  Ke3 {[%clk 0:00:09]} 67. d8=Q {[%clk 0:00:04]}  Kf2 {[%clk 0:00:10]} 68. Nc2 {[%clk 0:00:03]}  e1=Q {[%clk 0:00:10]} 69. Nxe1 {[%clk 0:00:03]}  Kxe1 {[%clk 0:00:10]} 70. Qd4 {[%clk 0:00:03]}  Ke2 {[%clk 0:00:11]} 71. Kxh4 {[%clk 0:00:03]}  Kf1 {[%clk 0:00:12]} 72. Qxc4+ {[%clk 0:00:03]}  Kg2 {[%clk 0:00:12]} 73. Qd3 {[%clk 0:00:03]}  Kf2 {[%clk 0:00:12]} 74. Kg4 {[%clk 0:00:03]}  Kg2 {[%clk 0:00:12]} 75. Qd2+ {[%clk 0:00:03]}  Kf1 {[%clk 0:00:12]} 76. Kg3 {[%clk 0:00:03]}  Kg1 {[%clk 0:00:12]} 77. Qg2# {[%clk 0:00:04]} 1-0


[Site "https://www.chess.com"]

[Event "Titled Tuesday Blitz February 22 Early 2022"]
[White "Hess, Robert"]
[Black "Vine, Elzbieta"]
[WhiteFideId "2022036"]
[BlackFideId "1119320"]
[WhiteElo "2557"]
[BlackElo "1897"]
[Result "1-0"]
[Round "03"]
[TimeControl "180+1"]
[Date "2022.02.22"]
[WhiteClock "0:00:16"]
[BlackClock "0:00:02"]

1. b3 {[%clk 0:03:00]}  e5 {[%clk 0:02:57]} 2. Bb2 {[%clk 0:03:00]}  d6 {[%clk 0:02:57]} 3. e3 {[%clk 0:03:00]}  Nc6 {[%clk 0:02:54]} 4. d4 {[%clk 0:03:00]}  Qf6 {[%clk 0:02:39]} 5. d5 {[%clk 0:02:59]}  Nce7 {[%clk 0:02:38]} 6. c4 {[%clk 0:02:59]}  Nh6 {[%clk 0:02:31]} 7. Nc3 {[%clk 0:02:59]}  Nhf5 {[%clk 0:02:27]} 8. Nf3 {[%clk 0:02:54]}  g5 {[%clk 0:02:22]} 9. Ne4 {[%clk 0:02:40]}  Qg6 {[%clk 0:02:22]} 10. Nexg5 {[%clk 0:02:28]}  Bh6 {[%clk 0:02:20]} 11. h4 {[%clk 0:02:24]}  f6 {[%clk 0:02:03]} 12. Ne6 {[%clk 0:02:10]}  Bxe6 {[%clk 0:02:02]} 13. dxe6 {[%clk 0:02:11]}  O-O-O {[%clk 0:02:01]} 14. h5 {[%clk 0:01:21]}  Qg8 {[%clk 0:01:55]} 15. Qc2 {[%clk 0:01:21]}  Qxe6 {[%clk 0:01:54]} 16. O-O-O {[%clk 0:01:19]}  Rhg8 {[%clk 0:01:44]} 17. Kb1 {[%clk 0:01:06]}  Kb8 {[%clk 0:01:34]} 18. Rh2 {[%clk 0:00:54]}  e4 {[%clk 0:01:20]} 19. Nd4 {[%clk 0:00:50]}  Nxd4 {[%clk 0:01:19]} 20. Rxd4 {[%clk 0:00:50]}  Nc6 {[%clk 0:01:08]} 21. Rxe4 {[%clk 0:00:48]}  Qf7 {[%clk 0:00:55]} 22. Reh4 {[%clk 0:00:35]}  Rg5 {[%clk 0:00:48]} 23. Bd3 {[%clk 0:00:33]}  Rdg8 {[%clk 0:00:43]} 24. Bxh7 {[%clk 0:00:29]}  R8g7 {[%clk 0:00:31]} 25. Bg6 {[%clk 0:00:29]}  Qe6 {[%clk 0:00:25]} 26. Re4 {[%clk 0:00:28]}  Re5 {[%clk 0:00:17]} 27. Bxe5 {[%clk 0:00:27]}  dxe5 {[%clk 0:00:13]} 28. Rh1 {[%clk 0:00:21]}  Bg5 {[%clk 0:00:05]} 29. f4 {[%clk 0:00:15]}  f5 {[%clk 0:00:02]} 30. fxg5 {[%clk 0:00:16]}  fxe4 {[%clk 0:00:02]} 31. Qxe4 {[%clk 0:00:16]} 1-0


[Site "https://www.chess.com"]

[Event "Titled Tuesday Blitz February 22 Early 2022"]
[White "Hjartarson, Johann"]
[Black "Boros, Denes"]
[WhiteFideId "2300044"]
[BlackFideId "722340"]
[WhiteElo "2484"]
[BlackElo "2464"]
[Result "1-0"]
[Round "03"]
[TimeControl "180+1"]
[Date "2022.02.22"]
[WhiteClock "0:00:09"]
[BlackClock "0:00:05"]

1. Nf3 {[%clk 0:03:00]}  c6 {[%clk 0:03:00]} 2. g3 {[%clk 0:02:59]}  d6 {[%clk 0:03:01]} 3. Bg2 {[%clk 0:02:58]}  Nf6 {[%clk 0:03:02]} 4. O-O {[%clk 0:02:58]}  Bg4 {[%clk 0:03:01]} 5. d4 {[%clk 0:02:57]}  Nbd7 {[%clk 0:03:01]} 6. h3 {[%clk 0:02:55]}  Bh5 {[%clk 0:03:01]} 7. Nbd2 {[%clk 0:02:54]}  e5 {[%clk 0:03:01]} 8. c3 {[%clk 0:02:50]}  Qc7 {[%clk 0:02:59]} 9. e4 {[%clk 0:02:50]}  Be7 {[%clk 0:02:59]} 10. Qc2 {[%clk 0:02:47]}  O-O {[%clk 0:02:59]} 11. Nh4 {[%clk 0:02:44]}  Rfe8 {[%clk 0:02:53]} 12. Re1 {[%clk 0:02:37]}  Bf8 {[%clk 0:02:46]} 13. Nf1 {[%clk 0:02:31]}  a5 {[%clk 0:02:32]} 14. Nf5 {[%clk 0:02:27]}  Bg6 {[%clk 0:02:32]} 15. N1e3 {[%clk 0:02:27]}  a4 {[%clk 0:02:23]} 16. Bd2 {[%clk 0:02:23]}  Qb6 {[%clk 0:02:19]} 17. Rad1 {[%clk 0:02:15]}  Qc7 {[%clk 0:02:11]} 18. Kh1 {[%clk 0:02:13]}  b5 {[%clk 0:02:09]} 19. f4 {[%clk 0:02:07]}  c5 {[%clk 0:01:43]} 20. fxe5 {[%clk 0:02:04]}  dxe5 {[%clk 0:01:44]} 21. d5 {[%clk 0:02:03]}  c4 {[%clk 0:01:41]} 22. Rf1 {[%clk 0:01:57]}  a3 {[%clk 0:01:41]} 23. b4 {[%clk 0:01:51]}  cxb3 {[%clk 0:01:41]} 24. Qxb3 {[%clk 0:01:51]}  Nc5 {[%clk 0:01:40]} 25. Qb1 {[%clk 0:01:46]}  Ra4 {[%clk 0:01:28]} 26. Qxb5 {[%clk 0:01:41]}  Rb8 {[%clk 0:01:23]} 27. Qc6 {[%clk 0:01:36]}  Qxc6 {[%clk 0:01:19]} 28. dxc6 {[%clk 0:01:36]}  Nfxe4 {[%clk 0:01:15]} 29. Be1 {[%clk 0:01:29]}  Rc8 {[%clk 0:01:15]} 30. Nd5 {[%clk 0:01:21]}  Bxf5 {[%clk 0:01:05]} 31. Rxf5 {[%clk 0:01:21]}  Rxc6 {[%clk 0:01:01]} 32. Rxe5 {[%clk 0:01:19]}  Re6 {[%clk 0:01:00]} 33. Rxe6 {[%clk 0:01:15]}  fxe6 {[%clk 0:01:01]} 34. Nb4 {[%clk 0:01:12]}  Ra7 {[%clk 0:00:52]} 35. Rd4 {[%clk 0:01:08]}  Nd6 {[%clk 0:00:46]} 36. g4 {[%clk 0:01:07]}  Kf7 {[%clk 0:00:42]} 37. Bf2 {[%clk 0:01:02]}  Rc7 {[%clk 0:00:30]} 38. Nc6 {[%clk 0:01:01]}  Nb5 {[%clk 0:00:24]} 39. Rf4+ {[%clk 0:01:00]}  Ke8 {[%clk 0:00:23]} 40. Rxf8+ {[%clk 0:00:58]}  Kxf8 {[%clk 0:00:24]} 41. Bxc5+ {[%clk 0:00:57]}  Ke8 {[%clk 0:00:25]} 42. c4 {[%clk 0:00:54]}  Nc3 {[%clk 0:00:25]} 43. Bxa3 {[%clk 0:00:51]}  Nxa2 {[%clk 0:00:25]} 44. Ne5 {[%clk 0:00:50]}  Ra7 {[%clk 0:00:22]} 45. Bd6 {[%clk 0:00:48]}  Nc3 {[%clk 0:00:21]} 46. c5 {[%clk 0:00:46]}  Ra1+ {[%clk 0:00:17]} 47. Kh2 {[%clk 0:00:46]}  Rd1 {[%clk 0:00:18]} 48. Bb8 {[%clk 0:00:35]}  Nd5 {[%clk 0:00:18]} 49. c6 {[%clk 0:00:33]}  Rc1 {[%clk 0:00:19]} 50. Be4 {[%clk 0:00:30]}  g6 {[%clk 0:00:19]} 51. h4 {[%clk 0:00:29]}  Nf6 {[%clk 0:00:14]} 52. Bf3 {[%clk 0:00:27]}  Ke7 {[%clk 0:00:15]} 53. c7 {[%clk 0:00:26]}  Ne8 {[%clk 0:00:14]} 54. Bc6 {[%clk 0:00:24]}  Nxc7 {[%clk 0:00:14]} 55. Bxc7 {[%clk 0:00:24]}  Rc2+ {[%clk 0:00:14]} 56. Kg3 {[%clk 0:00:22]}  Rc3+ {[%clk 0:00:15]} 57. Kf4 {[%clk 0:00:22]}  Kf6 {[%clk 0:00:15]} 58. g5+ {[%clk 0:00:20]}  Kg7 {[%clk 0:00:15]} 59. Bd8 {[%clk 0:00:19]}  Rc1 {[%clk 0:00:13]} 60. Bf6+ {[%clk 0:00:18]}  Kf8 {[%clk 0:00:14]} 61. Bd7 {[%clk 0:00:18]}  Rf1+ {[%clk 0:00:12]} 62. Kg3 {[%clk 0:00:18]}  Ra1 {[%clk 0:00:07]} 63. Bxe6 {[%clk 0:00:17]}  Ra3+ {[%clk 0:00:07]} 64. Kg4 {[%clk 0:00:16]}  Ra4+ {[%clk 0:00:08]} 65. Kg3 {[%clk 0:00:15]}  Ra3+ {[%clk 0:00:08]} 66. Kf4 {[%clk 0:00:15]}  Ra4+ {[%clk 0:00:09]} 67. Bc4 {[%clk 0:00:15]}  Rb4 {[%clk 0:00:09]} 68. Ke4 {[%clk 0:00:15]}  Ra4 {[%clk 0:00:09]} 69. Kd5 {[%clk 0:00:15]}  Ra5+ {[%clk 0:00:09]} 70. Kd6 {[%clk 0:00:15]}  Ke8 {[%clk 0:00:06]} 71. Bf7+ {[%clk 0:00:12]}  Kf8 {[%clk 0:00:07]} 72. Bd5 {[%clk 0:00:12]}  Ke8 {[%clk 0:00:06]} 73. Nc6 {[%clk 0:00:12]}  Rb5 {[%clk 0:00:05]} 74. Ke6 {[%clk 0:00:11]}  Rb7 {[%clk 0:00:05]} 75. Ne5 {[%clk 0:00:10]}  Rb6+ {[%clk 0:00:05]} 76. Bc6+ {[%clk 0:00:08]}  Kf8 {[%clk 0:00:05]} 77. Nd7+ {[%clk 0:00:09]} 1-0


[Site "https://www.chess.com"]

[Event "Titled Tuesday Blitz February 22 Early 2022"]
[White "Hua, Lefong"]
[Black "Gormally, Daniel W"]
[WhiteFideId "2602253"]
[BlackFideId "406465"]
[WhiteElo "2586"]
[BlackElo "2543"]
[Result "0-1"]
[Round "03"]
[TimeControl "180+1"]
[Date "2022.02.22"]
[WhiteClock "0:00:29"]
[BlackClock "0:00:38"]

1. d4 {[%clk 0:03:00]}  Nf6 {[%clk 0:02:58]} 2. c4 {[%clk 0:03:01]}  c5 {[%clk 0:02:56]} 3. d5 {[%clk 0:03:01]}  b5 {[%clk 0:02:57]} 4. cxb5 {[%clk 0:03:00]}  a6 {[%clk 0:02:57]} 5. b6 {[%clk 0:03:00]}  d6 {[%clk 0:02:56]} 6. Nc3 {[%clk 0:03:01]}  Nbd7 {[%clk 0:02:56]} 7. a4 {[%clk 0:03:01]}  Qxb6 {[%clk 0:02:54]} 8. a5 {[%clk 0:03:01]}  Qb7 {[%clk 0:02:53]} 9. e4 {[%clk 0:03:00]}  g6 {[%clk 0:02:53]} 10. f4 {[%clk 0:03:01]}  Bg7 {[%clk 0:02:53]} 11. Bc4 {[%clk 0:03:01]}  O-O {[%clk 0:02:53]} 12. Qd3 {[%clk 0:03:00]}  Ne8 {[%clk 0:02:34]} 13. Nf3 {[%clk 0:02:59]}  Nc7 {[%clk 0:02:33]} 14. O-O {[%clk 0:02:59]}  Rb8 {[%clk 0:02:30]} 15. Ra2 {[%clk 0:02:53]}  Nb5 {[%clk 0:02:25]} 16. Be3 {[%clk 0:02:53]}  Nf6 {[%clk 0:02:19]} 17. e5 {[%clk 0:02:30]}  Ng4 {[%clk 0:02:06]} 18. Bd2 {[%clk 0:02:21]}  dxe5 {[%clk 0:02:03]} 19. h3 {[%clk 0:02:13]}  Bf5 {[%clk 0:02:03]} 20. Ne4 {[%clk 0:01:54]}  Nf6 {[%clk 0:01:52]} 21. Nxf6+ {[%clk 0:01:37]}  Bxf6 {[%clk 0:01:49]} 22. Qe2 {[%clk 0:01:35]}  exf4 {[%clk 0:01:37]} 23. Bxf4 {[%clk 0:01:33]}  Nd6 {[%clk 0:01:37]} 24. b3 {[%clk 0:01:23]}  Nxc4 {[%clk 0:01:28]} 25. bxc4 {[%clk 0:01:21]}  Qb3 {[%clk 0:01:28]} 26. Bxb8 {[%clk 0:01:19]}  Bd3 {[%clk 0:01:28]} 27. Qf2 {[%clk 0:00:53]}  Bxf1 {[%clk 0:01:23]} 28. Be5 {[%clk 0:00:46]}  Bxc4 {[%clk 0:01:16]} 29. Rb2 {[%clk 0:00:46]}  Qd1+ {[%clk 0:01:15]} 30. Kh2 {[%clk 0:00:47]}  Bxe5+ {[%clk 0:01:03]} 31. Nxe5 {[%clk 0:00:46]}  Qxd5 {[%clk 0:01:04]} 32. Ng4 {[%clk 0:00:41]}  Qd6+ {[%clk 0:01:01]} 33. g3 {[%clk 0:00:41]}  Be6 {[%clk 0:00:58]} 34. Rb6 {[%clk 0:00:40]}  Qd4 {[%clk 0:00:55]} 35. Qxd4 {[%clk 0:00:38]}  cxd4 {[%clk 0:00:55]} 36. Rxa6 {[%clk 0:00:38]}  Rd8 {[%clk 0:00:54]} 37. Nf2 {[%clk 0:00:34]}  d3 {[%clk 0:00:54]} 38. Rb6 {[%clk 0:00:34]}  d2 {[%clk 0:00:47]} 39. a6 {[%clk 0:00:33]}  d1=Q {[%clk 0:00:38]} 40. Nxd1 {[%clk 0:00:32]}  Rxd1 {[%clk 0:00:39]} 41. a7 {[%clk 0:00:32]}  Bd5 {[%clk 0:00:39]} 42. Rb8+ {[%clk 0:00:31]}  Kg7 {[%clk 0:00:39]} 43. a8=Q {[%clk 0:00:29]}  Rh1# {[%clk 0:00:38]} 0-1


[Site "https://www.chess.com"]

[Event "Titled Tuesday Blitz February 22 Early 2022"]
[White "Ibrahimli, Murad"]
[Black "Stanisz, Patryk"]
[WhiteFideId "13410229"]
[BlackFideId "1123106"]
[WhiteElo "2109"]
[BlackElo "1876"]
[Result "1-0"]
[Round "03"]
[TimeControl "180+1"]
[Date "2022.02.22"]
[WhiteClock "0:01:14"]
[BlackClock "0:00:02"]

1. e4 {[%clk 0:03:00]}  c5 {[%clk 0:02:59]} 2. Nf3 {[%clk 0:03:00]}  Nc6 {[%clk 0:02:58]} 3. Bb5 {[%clk 0:02:59]}  g6 {[%clk 0:02:58]} 4. O-O {[%clk 0:02:58]}  Bg7 {[%clk 0:02:58]} 5. Re1 {[%clk 0:02:58]}  Nf6 {[%clk 0:02:57]} 6. Nc3 {[%clk 0:02:57]}  d6 {[%clk 0:02:48]} 7. e5 {[%clk 0:02:56]}  dxe5 {[%clk 0:02:45]} 8. Nxe5 {[%clk 0:02:57]}  Qc7 {[%clk 0:02:40]} 9. d3 {[%clk 0:02:53]}  Bd7 {[%clk 0:02:36]} 10. Nxd7 {[%clk 0:02:47]}  Qxd7 {[%clk 0:02:30]} 11. Be3 {[%clk 0:02:41]}  Nd5 {[%clk 0:02:02]} 12. Nxd5 {[%clk 0:02:15]}  Qxd5 {[%clk 0:02:01]} 13. c3 {[%clk 0:02:04]}  O-O {[%clk 0:01:55]} 14. Qb3 {[%clk 0:02:04]}  Qd6 {[%clk 0:01:39]} 15. Qa3 {[%clk 0:01:58]}  b6 {[%clk 0:01:36]} 16. d4 {[%clk 0:01:38]}  Rac8 {[%clk 0:00:11]} 17. dxc5 {[%clk 0:01:38]}  bxc5 {[%clk 0:00:12]} 18. Bxc5 {[%clk 0:01:38]}  Qf4 {[%clk 0:00:07]} 19. Be3 {[%clk 0:01:36]}  Qf6 {[%clk 0:00:06]} 20. Rad1 {[%clk 0:01:33]}  Ne5 {[%clk 0:00:05]} 21. h3 {[%clk 0:01:32]}  Rfd8 {[%clk 0:00:04]} 22. Bd4 {[%clk 0:01:28]}  Qf5 {[%clk 0:00:02]} 23. Ba6 {[%clk 0:01:14]} 1-0


[Site "https://www.chess.com"]

[Event "Titled Tuesday Blitz February 22 Early 2022"]
[White "Iljin, Timofey"]
[Black "Nithyalakshmi, Sivanesan"]
[WhiteFideId "14110180"]
[BlackFideId "5706955"]
[WhiteElo "2396"]
[BlackElo "1815"]
[Result "1-0"]
[Round "03"]
[TimeControl "180+1"]
[Date "2022.02.22"]
[WhiteClock "0:00:35"]
[BlackClock "0:00:01"]

1. e4 {[%clk 0:03:00]}  e5 {[%clk 0:02:58]} 2. d4 {[%clk 0:03:01]}  exd4 {[%clk 0:02:57]} 3. c3 {[%clk 0:03:01]}  dxc3 {[%clk 0:02:57]} 4. Bc4 {[%clk 0:03:01]}  d5 {[%clk 0:02:56]} 5. Bxd5 {[%clk 0:03:01]}  Be7 {[%clk 0:02:36]} 6. Nxc3 {[%clk 0:02:58]}  Nf6 {[%clk 0:02:33]} 7. Nf3 {[%clk 0:02:55]}  O-O {[%clk 0:02:33]} 8. O-O {[%clk 0:02:53]}  Nxd5 {[%clk 0:02:29]} 9. Nxd5 {[%clk 0:02:52]}  Nc6 {[%clk 0:02:24]} 10. Bf4 {[%clk 0:02:49]}  Bd6 {[%clk 0:02:19]} 11. e5 {[%clk 0:02:49]}  Bc5 {[%clk 0:02:06]} 12. Rc1 {[%clk 0:02:47]}  Bb6 {[%clk 0:02:03]} 13. Qb3 {[%clk 0:02:28]}  Be6 {[%clk 0:02:01]} 14. Rfd1 {[%clk 0:02:26]}  Qe8 {[%clk 0:01:25]} 15. Qc3 {[%clk 0:01:52]}  Bxd5 {[%clk 0:01:14]} 16. Rxd5 {[%clk 0:01:50]}  Rd8 {[%clk 0:01:13]} 17. Rcd1 {[%clk 0:01:48]}  Rxd5 {[%clk 0:01:08]} 18. Rxd5 {[%clk 0:01:49]}  Qe6 {[%clk 0:01:08]} 19. Qd2 {[%clk 0:01:49]}  h6 {[%clk 0:01:03]} 20. h3 {[%clk 0:01:45]}  Re8 {[%clk 0:00:55]} 21. a3 {[%clk 0:01:41]}  Qf5 {[%clk 0:00:54]} 22. b4 {[%clk 0:01:36]}  a6 {[%clk 0:00:26]} 23. Bg3 {[%clk 0:01:21]}  Re6 {[%clk 0:00:23]} 24. Kh2 {[%clk 0:01:12]}  Qe4 {[%clk 0:00:17]} 25. Rd3 {[%clk 0:00:59]}  Rg6 {[%clk 0:00:11]} 26. Nh4 {[%clk 0:00:51]}  Re6 {[%clk 0:00:10]} 27. Nf3 {[%clk 0:00:45]}  Rg6 {[%clk 0:00:10]} 28. Qc2 {[%clk 0:00:35]}  Qf5 {[%clk 0:00:02]} 29. Rd8+ {[%clk 0:00:34]}  Nxd8 {[%clk 0:00:02]} 30. Qxf5 {[%clk 0:00:35]}  Ne6 {[%clk 0:00:02]} 31. Qe4 {[%clk 0:00:34]}  c6 {[%clk 0:00:02]} 32. Qd3 {[%clk 0:00:35]}  Bc7 {[%clk 0:00:01]} 33. Qd7 {[%clk 0:00:35]} 1-0


[Site "https://www.chess.com"]

[Event "Titled Tuesday Blitz February 22 Early 2022"]
[White "Iskusnyh, Sergei"]
[Black "Prieto Aranguren, Alain"]
[WhiteFideId "4120027"]
[BlackFideId "2268906"]
[WhiteElo "2492"]
[BlackElo "2235"]
[Result "1-0"]
[Round "03"]
[TimeControl "180+1"]
[Date "2022.02.22"]
[WhiteClock "0:00:21"]
[BlackClock "0:00:08"]

1. d4 {[%clk 0:03:00]}  d5 {[%clk 0:02:58]} 2. c4 {[%clk 0:02:59]}  c6 {[%clk 0:02:53]} 3. Nf3 {[%clk 0:02:56]}  Nf6 {[%clk 0:02:52]} 4. e3 {[%clk 0:02:56]}  Ne4 {[%clk 0:02:50]} 5. Nc3 {[%clk 0:02:48]}  e6 {[%clk 0:02:43]} 6. Bd3 {[%clk 0:02:21]}  f5 {[%clk 0:02:42]} 7. Ne5 {[%clk 0:02:19]}  g6 {[%clk 0:02:33]} 8. O-O {[%clk 0:02:17]}  Nd7 {[%clk 0:02:25]} 9. Nxd7 {[%clk 0:01:57]}  Bxd7 {[%clk 0:02:24]} 10. f3 {[%clk 0:01:54]}  Nxc3 {[%clk 0:02:19]} 11. bxc3 {[%clk 0:01:53]}  Bd6 {[%clk 0:02:16]} 12. Qb3 {[%clk 0:01:52]}  Qc7 {[%clk 0:02:11]} 13. f4 {[%clk 0:01:48]}  g5 {[%clk 0:02:00]} 14. Ba3 {[%clk 0:01:45]}  Bxa3 {[%clk 0:01:55]} 15. Qxa3 {[%clk 0:01:44]}  Rg8 {[%clk 0:01:52]} 16. Rab1 {[%clk 0:01:37]}  b6 {[%clk 0:01:48]} 17. Rbc1 {[%clk 0:01:33]}  O-O-O {[%clk 0:01:40]} 18. cxd5 {[%clk 0:01:31]}  exd5 {[%clk 0:01:35]} 19. c4 {[%clk 0:01:31]}  dxc4 {[%clk 0:01:29]} 20. Rxc4 {[%clk 0:01:30]}  Kb8 {[%clk 0:01:19]} 21. Rc2 {[%clk 0:01:16]}  gxf4 {[%clk 0:01:12]} 22. Rxf4 {[%clk 0:01:13]}  Rg5 {[%clk 0:01:08]} 23. Rcf2 {[%clk 0:01:11]}  Rdg8 {[%clk 0:01:03]} 24. Bxf5 {[%clk 0:00:59]}  Bxf5 {[%clk 0:01:02]} 25. Rxf5 {[%clk 0:00:59]}  Rxf5 {[%clk 0:01:02]} 26. Rxf5 {[%clk 0:00:59]}  Qd7 {[%clk 0:00:57]} 27. Rf2 {[%clk 0:00:55]}  Kb7 {[%clk 0:00:49]} 28. Qb3 {[%clk 0:00:52]}  Rg7 {[%clk 0:00:48]} 29. h3 {[%clk 0:00:49]}  h5 {[%clk 0:00:37]} 30. Rf3 {[%clk 0:00:47]}  h4 {[%clk 0:00:30]} 31. Kh1 {[%clk 0:00:41]}  Qe7 {[%clk 0:00:26]} 32. a4 {[%clk 0:00:39]}  Qe4 {[%clk 0:00:22]} 33. a5 {[%clk 0:00:36]}  Qd5 {[%clk 0:00:18]} 34. Qa3 {[%clk 0:00:28]}  Qxa5 {[%clk 0:00:16]} 35. Qf8 {[%clk 0:00:26]}  Rc7 {[%clk 0:00:14]} 36. Qf6 {[%clk 0:00:25]}  Qe1+ {[%clk 0:00:12]} 37. Kh2 {[%clk 0:00:25]}  a5 {[%clk 0:00:11]} 38. Qd6 {[%clk 0:00:23]}  a4 {[%clk 0:00:09]} 39. d5 {[%clk 0:00:23]}  cxd5 {[%clk 0:00:07]} 40. Qxd5+ {[%clk 0:00:22]}  Ka7 {[%clk 0:00:08]} 41. Qd4 {[%clk 0:00:21]} 1-0


[Site "https://www.chess.com"]